fUST/lending_fUST_20240731
["ID","MTS","AMOUNT","RATE_DAILY","PERIOD"]
[333723687,1722408640874,-500.0,0.00013698,2]
[333723688,1722408640884,-500.0,0.00013698,2]
[333723689,1722408640896,-617.85792312,0.00013698,2]
[333723690,1722408640905,-206.42538066,0.00013698,2]
[333723691,1722408640915,-500.0,0.00013698,2]
[333723692,1722408640925,-1063.51,0.00013698,2]
[333723693,1722408640936,-500.000001,0.00013698,2]
[333723694,1722408640946,-500.0,0.00013698,2]
[333723695,1722408640956,-164.26021029,0.00013698,2]
[333723696,1722408640966,-500.0,0.00013698,2]
[333723697,1722408640977,-500.0,0.00013698,2]
[333723698,1722408640986,-500.0,0.00013698,2]
[333723699,1722408640997,-313.36360577,0.00013698,2]
[333723700,1722408641008,-500.0,0.00013698,2]
[333723701,1722408641018,-500.0,0.00013698,2]
[333723702,1722408641029,-500.0,0.00013698,2]
[333723703,1722408641039,-500.0,0.00013698,2]
[333723704,1722408641049,-518.09102675,0.00013698,2]
[333723705,1722408641058,-500.0,0.00013698,2]
[333723706,1722408641068,-500.0,0.00013698,2]
[333723707,1722408641077,-500.0,0.00013698,2]
[333723708,1722408641087,-649.96,0.00013698,2]
[333723709,1722408641097,-57.92361194,0.00013698,2]
[333723710,1722408641204,-442.07638806,0.00013698,2]
[333723711,1722408641215,-500.0,0.00013698,2]
[333723712,1722408641226,-500.0,0.00013698,2]
[333723713,1722408641237,-500.0,0.00013698,2]
[333723714,1722408641247,-501.58533449,0.00013698,2]
[333723715,1722408641257,-500.0,0.00013698,2]
[333723716,1722408641267,-500.0,0.00013698,2]
[333723717,1722408641278,-500.0,0.00013698,2]
[333723718,1722408641289,-1195.37,0.00013698,2]
[333723719,1722408641300,-979.14,0.00013698,2]
[333723720,1722408641309,-501.48550373,0.00013698,2]
[333723721,1722408641321,-500.0,0.00013698,2]
[333723722,1722408641332,-500.0,0.00013698,2]
[333723723,1722408641342,-1252.59,0.00013698,2]
[333723724,1722408641352,-500.36432242,0.00013698,2]
[333723725,1722408641362,-282.90711797,0.00013698,2]
[333723726,1722408641373,-500.0,0.00013698,2]
[333723727,1722408641383,-500.0,0.00013698,2]
[333723728,1722408641394,-585.45535077,0.00013698,2]
[333723729,1722408641404,-500.0,0.00013698,2]
[333723731,1722408641415,-500.0,0.00013698,2]
[333723733,1722408641425,-500.0,0.00013698,2]
[333723735,1722408641436,-500.0,0.00013698,2]
[333723736,1722408641446,-500.0,0.00013698,2]
[333723737,1722408641457,-500.0,0.00013698,2]
[333723738,1722408641467,-500.0,0.00013698,2]
[333723739,1722408641477,-503.11901391,0.00013698,2]
[333723741,1722408641487,-1489.91,0.00013698,2]
[333723743,1722408641499,-500.0,0.00013698,2]
[333723744,1722408641509,-501.76981386,0.00013698,2]
[333723745,1722408641518,-500.0,0.00013698,2]
[333723747,1722408641528,-646.13,0.00013698,2]
[333723748,1722408641538,-233.92808186,0.00013698,2]
[333723749,1722408641548,-500.0,0.00013698,2]
[333723750,1722408641558,-500.0,0.00013698,2]
[333723752,1722408641568,-502.22700289,0.00013698,2]
[333723753,1722408641578,-505.70967278,0.00013698,2]
[333723755,1722408641588,-1159.85,0.00013698,2]
[333723756,1722408641598,-500.0,0.00013698,2]
[333723757,1722408641608,-500.0,0.00013698,2]
[333723758,1722408641617,-500.0,0.00013698,2]
[333723759,1722408641627,-500.0,0.00013698,2]
[333723760,1722408641637,-622.79,0.00013698,2]
[333723761,1722408641646,-505.97087219,0.00013698,2]
[333723762,1722408641655,-355.97088972,0.00013698,2]
[333723763,1722408641664,-500.0,0.00013698,2]
[333723764,1722408641675,-1604.89,0.00013698,2]
[333723765,1722408641684,-500.0,0.00013698,2]
[333723766,1722408641694,-500.0,0.00013698,2]
[333723767,1722408641703,-460.45151269,0.00013698,2]
[333723768,1722408641713,-500.0,0.00013698,2]
[333723769,1722408641722,-500.0,0.00013698,2]
[333723770,1722408641732,-500.0,0.00013698,2]
[333723771,1722408641741,-500.0,0.00013698,2]
[333723772,1722408641751,-500.0,0.00013698,2]
[333723773,1722408641760,-500.0,0.00013698,2]
[333723774,1722408641770,-500.0,0.00013698,2]
[333723775,1722408641780,-500.0,0.00013698,2]
[333723776,1722408641789,-506.79672606,0.00013698,2]
[333723777,1722408641800,-500.0,0.00013698,2]
[333723778,1722408641810,-500.0,0.00013698,2]
[333723779,1722408641820,-500.0,0.00013698,2]
[333723780,1722408641830,-509.89520557,0.00013698,2]
[333723781,1722408641840,-500.0,0.00013698,2]
[333723782,1722408641850,-500.0,0.00013698,2]
[333723783,1722408641861,-500.0,0.00013698,2]
[333723784,1722408641870,-581.9416792,0.00013698,2]
[333723785,1722408641882,-6397.88,0.00013698,2]
[333723786,1722408641893,-976.77,0.00013698,2]
[333723787,1722408641903,-967.32,0.00013698,2]
[333723788,1722408641912,-500.0,0.00013698,2]
[333723789,1722408641923,-500.0,0.00013698,2]
[333723790,1722408641933,-500.0,0.00013698,2]
[333723791,1722408641943,-664.87,0.00013698,2]
[333723792,1722408641952,-1493.57,0.00013698,2]
[333723793,1722408641963,-500.0,0.00013698,2]
[333723794,1722408641974,-500.0,0.00013698,2]
[333723795,1722408641984,-500.0,0.00013698,2]
[333723796,1722408641994,-1021.42,0.00013698,2]
[333723797,1722408642004,-515.19925319,0.00013698,2]
[333723798,1722408642014,-183.21664182,0.00013698,2]
[333723799,1722408642024,-360.22665635,0.00013698,2]
[333723800,1722408642039,-139.77334365,0.00013698,2]
[333723801,1722408642049,-334.27696759,0.00013698,2]
[333723802,1722408642061,-165.72303241,0.00013698,2]
[333723803,1722408642070,-503.10176884,0.00013698,2]
[333723804,1722408642080,-394.3538169,0.00013698,2]
[333723805,1722408642092,-1091.92355696,0.00013698,2]
[333723841,1722408646184,-2000.0,0.00013598,2]
[333723842,1722408646195,-46.23262614,0.00013698,2]
[333723843,1722408646211,-500.0,0.00013698,2]
[333723844,1722408646228,-500.0,0.00013698,2]
[333723845,1722408646239,-500.0,0.00013698,2]
[333723846,1722408646250,-500.0,0.00013698,2]
[333723847,1722408646259,-1211.17,0.00013698,2]
[333723848,1722408646269,-500.0,0.00013698,2]
[333723849,1722408646278,-500.0,0.00013698,2]
[333723850,1722408646287,-713.69,0.00013698,2]
[333723851,1722408646297,-1172.26,0.00013698,2]
[333723852,1722408646306,-504.59306711,0.00013698,2]
[333723853,1722408646316,-500.0,0.00013698,2]
[333723854,1722408646325,-502.94708473,0.00013698,2]
[333723855,1722408646336,-214.29628257,0.00013698,2]
[333723856,1722408646345,-500.0,0.00013698,2]
[333723857,1722408646355,-500.0,0.00013698,2]
[333723858,1722408646364,-500.0,0.00013698,2]
[333723859,1722408646374,-500.0,0.00013698,2]
[333723860,1722408646384,-500.0,0.00013698,2]
[333723861,1722408646396,-1729.97,0.00013698,2]
[333723862,1722408646407,-500.0,0.00013698,2]
[333723863,1722408646419,-500.0,0.00013698,2]
[333723864,1722408646427,-500.0,0.00013698,2]
[333723865,1722408646437,-500.0,0.00013698,2]
[333723866,1722408646446,-500.0,0.00013698,2]
[333723867,1722408646457,-697.89,0.00013698,2]
[333723868,1722408646470,-500.0,0.00013698,2]
[333723869,1722408646480,-528.64980145,0.00013698,2]
[333723870,1722408646490,-1192.97,0.00013698,2]
[333723871,1722408646500,-500.0,0.00013698,2]
[333723872,1722408646510,-500.0,0.00013698,2]
[333723873,1722408646519,-500.0,0.00013698,2]
[333723874,1722408646528,-500.0,0.00013698,2]
[333723875,1722408646538,-506.51951383,0.00013698,2]
[333723876,1722408646547,-751.31,0.00013698,2]
[333723877,1722408646556,-500.0,0.00013698,2]
[333723878,1722408646722,-525.78238354,0.00013698,2]
[333723879,1722408646735,-1427.73,0.00013698,2]
[333723880,1722408646746,-2004.17,0.00013698,2]
[333723881,1722408646756,-1799.29,0.00013698,2]
[333723882,1722408646767,-500.0,0.00013698,2]
[333723883,1722408646777,-1585.9,0.00013698,2]
[333723884,1722408646786,-500.0,0.00013698,2]
[333723885,1722408646797,-500.0,0.00013698,2]
[333723886,1722408646806,-359.22598153,0.00013698,2]
[333723942,1722409498512,199.6638627,0.00027,120]
[333723943,1722409584457,160.02872969,9.999e-05,2]
[333723945,1722409619838,7902.84623779,9.999e-05,2]
[333723946,1722409622014,154.97076163,9.999e-05,2]
[333723947,1722409635974,183.28906141,9.999e-05,2]
[333723948,1722409644310,154.71631724,9.999e-05,2]
[333723949,1722409647165,218.21171043,9.999e-05,2]
[333723951,1722409655491,199.10575487,9.999e-05,2]
[333723964,1722409715633,154.88956423,9.999e-05,2]
[333723966,1722409764405,154.71377951,0.0001,2]
[333724026,1722409832336,-300.0,0.00012598,2]
[333724028,1722409832346,-772.58812779,0.00012599,2]
[333724097,1722409840278,-24127.41187221,0.00012599,2]
[333724098,1722409840289,-164.668646,0.00012986,2]
[333724099,1722409840300,-473.83614436,0.00013,2]
[333724100,1722409840313,-367.7265943,0.00013448,2]
[333724101,1722409840326,-2782.1524705,0.00013578,2]
[333724103,1722409840336,-5310.91571796,0.00013581,2]
[333724105,1722409840347,-2782.15247046,0.00013583,2]
[333724107,1722409840357,-2782.15247046,0.00013588,2]
[333724109,1722409840367,-1506.48666985,0.00013588,2]
[333724110,1722409840377,-2782.15247046,0.00013592,2]
[333724111,1722409840390,-2782.15247046,0.00013597,2]
[333724113,1722409840400,-200.0,0.00013598,2]
[333724114,1722409840410,-8503.32589339,0.00013598,2]
[333724115,1722409840420,-150.112233,0.000136,2]
[333724116,1722409840433,-72080.68604,0.00013641,2]
[333724117,1722409840443,-87274.19238869,0.00013651,2]
[333724118,1722409840453,-72080.68604,0.00013677,2]
[333724119,1722409840462,-2613.51,0.00013687,2]
[333724121,1722409840472,-2613.51,0.00013687,2]
[333724122,1722409840483,-144161.37208,0.00013688,2]
[333724123,1722409840492,-66434.59337098,0.00013688,5]
[333724124,1722409840502,-30994.17909511,0.00013688,5]
[333724125,1722409840511,-151.0,0.00013688,2]
[333724126,1722409840521,-151.0,0.00013688,2]
[333724127,1722409840530,-230.137213,0.00013688,2]
[333724129,1722409840540,-151.0,0.00013688,2]
[333724131,1722409840549,-151.0,0.00013688,2]
[333724132,1722409840561,-151.0,0.00013688,2]
[333724133,1722409840570,-151.0,0.00013688,2]
[333724134,1722409840580,-72080.68604,0.00013688,2]
[333724135,1722409840594,-2613.51,0.00013697,2]
[333724136,1722409840604,-2613.51,0.00013697,2]
[333724137,1722409840614,-2613.51,0.00013697,2]
[333724138,1722409840623,-2613.51,0.00013697,2]
[333724139,1722409840633,-2613.51,0.00013697,2]
[333724140,1722409840642,-2613.51,0.00013697,2]
[333724141,1722409840651,-170.37125402,0.00013698,2]
[333724142,1722409840660,-500.0,0.00013698,2]
[333724143,1722409840671,-501.15823509,0.00013698,2]
[333724144,1722409840681,-320.60426248,0.00013698,2]
[333724145,1722409840693,-200.48393973,0.00013698,2]
[333724146,1722409840702,-500.0,0.00013698,2]
[333724147,1722409840712,-500.0,0.00013698,2]
[333724148,1722409840721,-553.13283947,0.00013698,2]
[333724149,1722409840730,-500.0,0.00013698,2]
[333724150,1722409840740,-500.0,0.00013698,2]
[333724151,1722409840750,-500.0,0.00013698,2]
[333724152,1722409840759,-500.0,0.00013698,2]
[333724153,1722409840768,-499.99999999,0.00013698,2]
[333724154,1722409840777,-174.37281606,0.00013698,2]
[333724155,1722409840787,-1473.36,0.00013698,2]
[333724156,1722409840796,-500.0,0.00013698,2]
[333724157,1722409840805,-500.0,0.00013698,2]
[333724158,1722409840815,-245.92942543,0.00013698,2]
[333724159,1722409840824,-500.0,0.00013698,2]
[333724160,1722409840834,-158.54426512,0.00013698,2]
[333724161,1722409840843,-622.43951399,0.00013698,2]
[333724162,1722409840853,-500.0,0.00013698,2]
[333724163,1722409840863,-500.0,0.00013698,2]
[333724164,1722409840872,-500.0,0.00013698,2]
[333724165,1722409840885,-384.82598805,0.00013698,2]
[333724166,1722409840895,-500.0,0.00013698,2]
[333724167,1722409840906,-500.0,0.00013698,2]
[333724168,1722409840916,-500.0,0.00013698,2]
[333724169,1722409840927,-500.0,0.00013698,2]
[333724170,1722409840936,-500.0,0.00013698,2]
[333724171,1722409840948,-500.0,0.00013698,2]
[333724172,1722409840958,-500.0,0.00013698,2]
[333724173,1722409840967,-254.87100489,0.00013698,2]
[333724174,1722409840976,-500.0,0.00013698,2]
[333724175,1722409840986,-500.0,0.00013698,2]
[333724176,1722409840996,-500.0,0.00013698,2]
[333724177,1722409841007,-511.11068816,0.00013698,2]
[333724178,1722409841018,-300.0,0.00013698,2]
[333724179,1722409841028,-500.0,0.00013698,2]
[333724180,1722409841038,-593.75,0.00013698,2]
[333724181,1722409841048,-500.0,0.00013698,2]
[333724182,1722409841058,-500.0,0.00013698,2]
[333724183,1722409841068,-942.71,0.00013698,2]
[333724184,1722409841078,-500.0,0.00013698,2]
[333724185,1722409841087,-500.0,0.00013698,2]
[333724186,1722409841098,-500.0,0.00013698,2]
[333724187,1722409841107,-500.0,0.00013698,2]
[333724188,1722409841118,-164.26021029,0.00013698,2]
[333724189,1722409841129,-500.0,0.00013698,2]
[333724190,1722409841139,-500.0,0.00013698,2]
[333724191,1722409841148,-980.43,0.00013698,2]
[333724192,1722409841158,-500.0,0.00013698,2]
[333724193,1722409841167,-500.0,0.00013698,2]
[333724194,1722409841176,-500.0,0.00013698,2]
[333724195,1722409841186,-313.36360577,0.00013698,2]
[333724196,1722409841196,-500.0,0.00013698,2]
[333724197,1722409841206,-500.0,0.00013698,2]
[333724198,1722409841217,-151.0,0.00013698,2]
[333724199,1722409841229,-500.0,0.00013698,2]
[333724200,1722409841240,-500.000001,0.00013698,2]
[333724201,1722409841251,-151.0,0.00013698,2]
[333724202,1722409841261,-500.0,0.00013698,2]
[333724203,1722409841271,-500.0,0.00013698,2]
[333724204,1722409841281,-500.0,0.00013698,2]
[333724205,1722409841290,-500.0,0.00013698,2]
[333724206,1722409841300,-500.0,0.00013698,2]
[333724207,1722409841312,-500.0,0.00013698,2]
[333724208,1722409841324,-500.0,0.00013698,2]
[333724209,1722409841334,-501.48550373,0.00013698,2]
[333724210,1722409841343,-500.0,0.00013698,2]
[333724211,1722409841352,-500.0,0.00013698,2]
[333724212,1722409841361,-967.32,0.00013698,2]
[333724213,1722409841370,-1021.42,0.00013698,2]
[333724214,1722409841379,-500.0,0.00013698,2]
[333724215,1722409841390,-151.0,0.00013698,2]
[333724216,1722409841399,-151.0,0.00013698,2]
[333724217,1722409841409,-585.45535077,0.00013698,2]
[333724218,1722409841419,-500.0,0.00013698,2]
[333724219,1722409841428,-749.16,0.00013698,2]
[333724220,1722409841438,-500.0,0.00013698,2]
[333724221,1722409841447,-500.0,0.00013698,2]
[333724222,1722409841457,-504.37885215,0.00013698,2]
[333724223,1722409841466,-501.76981386,0.00013698,2]
[333724224,1722409841475,-500.0,0.00013698,2]
[333724225,1722409841486,-500.0,0.00013698,2]
[333724226,1722409841496,-500.0,0.00013698,2]
[333724227,1722409841506,-151.0,0.00013698,2]
[333724228,1722409841515,-151.0,0.00013698,2]
[333724229,1722409841524,-460.45151269,0.00013698,2]
[333724230,1722409841534,-500.0,0.00013698,2]
[333724231,1722409841544,-500.0,0.00013698,2]
[333724232,1722409841553,-503.11901391,0.00013698,2]
[333724233,1722409841564,-500.0,0.00013698,2]
[333724234,1722409841574,-233.92808186,0.00013698,2]
[333724235,1722409841585,-502.22700289,0.00013698,2]
[333724236,1722409841599,-500.0,0.00013698,2]
[333724237,1722409841611,-500.0,0.00013698,2]
[333724238,1722409841620,-500.0,0.00013698,2]
[333724239,1722409841630,-500.0,0.00013698,2]
[333724240,1722409841640,-500.0,0.00013698,2]
[333724241,1722409841649,-500.0,0.00013698,2]
[333724242,1722409841658,-500.0,0.00013698,2]
[333724243,1722409841668,-500.0,0.00013698,2]
[333724244,1722409841677,-1479.38,0.00013698,2]
[333724245,1722409841688,-500.0,0.00013698,2]
[333724246,1722409841697,-500.0,0.00013698,2]
[333724247,1722409841706,-500.0,0.00013698,2]
[333724248,1722409841715,-500.0,0.00013698,2]
[333724249,1722409841725,-500.0,0.00013698,2]
[333724250,1722409841737,-500.0,0.00013698,2]
[333724251,1722409841748,-500.0,0.00013698,2]
[333724252,1722409841758,-500.0,0.00013698,2]
[333724253,1722409841769,-500.0,0.00013698,2]
[333724254,1722409841779,-500.0,0.00013698,2]
[333724255,1722409841788,-500.0,0.00013698,2]
[333724256,1722409841797,-505.70967278,0.00013698,2]
[333724257,1722409841806,-500.0,0.00013698,2]
[333724258,1722409841817,-766.84,0.00013698,2]
[333724259,1722409841827,-523.34935987,0.00013698,2]
[333724260,1722409841988,-509.89520557,0.00013698,2]
[333724261,1722409842001,-500.0,0.00013698,2]
[333724262,1722409842010,-500.0,0.00013698,2]
[333724263,1722409842020,-502.37850891,0.00013698,2]
[333724264,1722409842029,-151.0,0.00013698,2]
[333724265,1722409842038,-500.0,0.00013698,2]
[333724266,1722409842048,-500.0,0.00013698,2]
[333724267,1722409842057,-500.0,0.00013698,2]
[333724268,1722409842068,-500.0,0.00013698,2]
[333724269,1722409842077,-500.0,0.00013698,2]
[333724270,1722409842086,-500.0,0.00013698,2]
[333724271,1722409842096,-503.64346272,0.00013698,2]
[333724272,1722409842106,-500.0,0.00013698,2]
[333724273,1722409842115,-500.0,0.00013698,2]
[333724274,1722409842128,-500.0,0.00013698,2]
[333724275,1722409842138,-500.0,0.00013698,2]
[333724276,1722409842147,-505.97087219,0.00013698,2]
[333724277,1722409842157,-515.19925319,0.00013698,2]
[333724278,1722409842167,-500.0,0.00013698,2]
[333724279,1722409842176,-358.4536143,0.00013698,2]
[333724280,1722409842186,-500.0,0.00013698,2]
[333724281,1722409842195,-500.0,0.00013698,2]
[333724282,1722409842205,-500.0,0.00013698,2]
[333724283,1722409842216,-500.0,0.00013698,2]
[333724284,1722409842225,-500.0,0.00013698,2]
[333724285,1722409842235,-500.0,0.00013698,2]
[333724286,1722409842244,-961.72,0.00013698,2]
[333724287,1722409842254,-500.0,0.00013698,2]
[333724288,1722409842265,-506.79672606,0.00013698,2]
[333724289,1722409842274,-1097.5,0.00013698,2]
[333724290,1722409842284,-1047.1,0.00013698,2]
[333724291,1722409842295,-500.0,0.00013698,2]
[333724292,1722409842305,-183.21664182,0.00013698,2]
[333724293,1722409842318,-500.0,0.00013698,2]
[333724294,1722409842328,-500.0,0.00013698,2]
[333724295,1722409842340,-500.0,0.00013698,2]
[333724296,1722409842350,-1130.35,0.00013698,2]
[333724297,1722409842360,-500.0,0.00013698,2]
[333724298,1722409842372,-500.0,0.00013698,2]
[333724299,1722409842384,-303.36954347,0.00013698,2]
[333724300,1722409842394,-500.0,0.00013698,2]
[333724301,1722409842406,-500.0,0.00013698,2]
[333724302,1722409842416,-500.0,0.00013698,2]
[333724303,1722409842426,-500.0,0.00013698,2]
[333724304,1722409842436,-500.0,0.00013698,2]
[333724305,1722409842447,-500.0,0.00013698,2]
[333724306,1722409842458,-151.0,0.00013698,2]
[333724307,1722409842468,-151.0,0.00013698,2]
[333724308,1722409842479,-151.0,0.00013698,2]
[333724309,1722409842490,-151.0,0.00013698,2]
[333724310,1722409842501,-151.0,0.00013698,2]
[333724311,1722409842512,-500.0,0.00013698,2]
[333724312,1722409842522,-151.0,0.00013698,2]
[333724313,1722409842534,-500.0,0.00013698,2]
[333724314,1722409842545,-1314.25,0.00013698,2]
[333724315,1722409842557,-500.0,0.00013698,2]
[333724316,1722409842583,-500.0,0.00013698,2]
[333724317,1722409842595,-500.0,0.00013698,2]
[333724318,1722409842606,-500.0,0.00013698,2]
[333724319,1722409842616,-500.0,0.00013698,2]
[333724320,1722409842627,-478.61781325,0.00013698,2]
[333724321,1722409842637,-1368.24,0.00013698,2]
[333724322,1722409842647,-500.0,0.00013698,2]
[333724323,1722409842658,-500.0,0.00013698,2]
[333724324,1722409842667,-500.0,0.00013698,2]
[333724325,1722409842679,-500.0,0.00013698,2]
[333724326,1722409842689,-500.0,0.00013698,2]
[333724327,1722409842700,-500.0,0.00013698,2]
[333724328,1722409842710,-505.00582573,0.00013698,2]
[333724329,1722409842720,-500.0,0.00013698,2]
[333724330,1722409842730,-2861.69,0.00013698,2]
[333724331,1722409842740,-500.0,0.00013698,2]
[333724332,1722409842750,-257.17965278,0.00013698,2]
[333724333,1722409842760,-500.0,0.00013698,2]
[333724334,1722409842771,-500.0,0.00013698,2]
[333724335,1722409842780,-500.0,0.00013698,2]
[333724336,1722409842790,-500.0,0.00013698,2]
[333724337,1722409842800,-500.0,0.00013698,2]
[333724338,1722409842810,-500.0,0.00013698,2]
[333724339,1722409842819,-500.0,0.00013698,2]
[333724340,1722409842829,-500.0,0.00013698,2]
[333724341,1722409842838,-500.0,0.00013698,2]
[333724342,1722409842848,-500.0,0.00013698,2]
[333724343,1722409842858,-500.0,0.00013698,2]
[333724344,1722409842867,-500.0,0.00013698,2]
[333724345,1722409842878,-500.0,0.00013698,2]
[333724346,1722409842887,-500.0,0.00013698,2]
[333724347,1722409842896,-500.0,0.00013698,2]
[333724348,1722409842906,-518.09102675,0.00013698,2]
[333724350,1722409842916,-151.0,0.00013698,2]
[333724352,1722409842926,-152.274227,0.00013698,2]
[333724353,1722409842936,-500.0,0.00013698,2]
[333724354,1722409842945,-355.90835341,0.00013698,2]
[333724355,1722409842955,-600.19715287,0.00013698,2]
[333724356,1722409842965,-500.0,0.00013698,2]
[333724357,1722409842974,-500.0,0.00013698,2]
[333724358,1722409842984,-500.0,0.00013698,2]
[333724359,1722409842994,-502.81910186,0.00013698,2]
[333724360,1722409843004,-576.3983284,0.00013698,2]
[333724361,1722409843013,-626.24,0.00013698,2]
[333724362,1722409843023,-1000.85,0.00013698,2]
[333724363,1722409843032,-500.0,0.00013698,2]
[333724364,1722409843041,-979.14,0.00013698,2]
[333724365,1722409843051,-500.0,0.00013698,2]
[333724366,1722409843061,-500.0,0.00013698,2]
[333724367,1722409843085,-1105.18,0.00013698,2]
[333724368,1722409843095,-645.3645662,0.00013698,2]
[333724369,1722409843104,-151.0,0.00013698,2]
[333724370,1722409843114,-151.0,0.00013698,2]
[333724371,1722409843124,-151.0,0.00013698,2]
[333724372,1722409843134,-1252.59,0.00013698,2]
[333724374,1722409843143,-2670.58,0.00013698,2]
[333724376,1722409843153,-170.0,0.00013698,2]
[333724378,1722409843162,-206.42538066,0.00013698,2]
[333724379,1722409843172,-500.0,0.00013698,2]
[333724380,1722409843182,-500.0,0.00013698,2]
[333724381,1722409843192,-501.21567521,0.00013698,2]
[333724382,1722409843202,-500.0,0.00013698,2]
[333724383,1722409843211,-151.0,0.00013698,2]
[333724384,1722409843221,-151.0,0.00013698,2]
[333724385,1722409843231,-151.0,0.00013698,2]
[333724386,1722409843241,-151.0,0.00013698,2]
[333724387,1722409843250,-500.0,0.00013698,2]
[333724388,1722409843260,-500.0,0.00013698,2]
[333724389,1722409843270,-501.0442106,0.00013698,2]
[333724391,1722409843279,-500.0,0.00013698,2]
[333724392,1722409843289,-500.0,0.00013698,2]
[333724393,1722409843300,-500.0,0.00013698,2]
[333724394,1722409843310,-500.36432242,0.00013698,2]
[333724395,1722409843325,-500.0,0.00013698,2]
[333724396,1722409843334,-500.0,0.00013698,2]
[333724397,1722409843344,-500.0,0.00013698,2]
[333724398,1722409843354,-282.90711797,0.00013698,2]
[333724399,1722409843364,-500.0,0.00013698,2]
[333724400,1722409843374,-500.0,0.00013698,2]
[333724401,1722409843384,-500.0,0.00013698,2]
[333724402,1722409843393,-500.0,0.00013698,2]
[333724403,1722409843404,-500.0,0.00013698,2]
[333724404,1722409843414,-500.0,0.00013698,2]
[333724405,1722409843423,-500.0,0.00013698,2]
[333724406,1722409843433,-500.0,0.00013698,2]
[333724407,1722409843443,-726.58,0.00013698,2]
[333724408,1722409843453,-500.0,0.00013698,2]
[333724409,1722409843463,-583.23,0.00013698,2]
[333724410,1722409843473,-500.0,0.00013698,2]
[333724411,1722409843483,-501.58533449,0.00013698,2]
[333724412,1722409843492,-151.0,0.00013698,2]
[333724413,1722409843502,-247.85820003,0.00013698,2]
[333724414,1722409843512,-550.05987282,0.00013698,2]
[333724415,1722409843522,-1580.26,0.00013698,2]
[333724416,1722409843532,-373.656374,0.00013698,2]
[333724417,1722409843542,-373.656374,0.00013698,2]
[333724418,1722409843551,-646.13,0.00013698,2]
[333724419,1722409843561,-373.656374,0.00013698,2]
[333724420,1722409843577,-373.656374,0.00013698,2]
[333724421,1722409843591,-500.0,0.00013698,2]
[333724422,1722409843600,-373.656374,0.00013698,2]
[333724423,1722409843610,-373.656374,0.00013698,2]
[333724424,1722409843621,-373.656374,0.00013698,2]
[333724425,1722409843631,-500.0,0.00013698,2]
[333724426,1722409843640,-373.656374,0.00013698,2]
[333724427,1722409843649,-581.59063488,0.00013698,2]
[333724428,1722409843660,-500.0,0.00013698,2]
[333724429,1722409843669,-638.57,0.00013698,2]
[333724430,1722409843679,-500.0,0.00013698,2]
[333724431,1722409843690,-500.0,0.00013698,2]
[333724432,1722409843700,-151.0,0.00013698,2]
[333724433,1722409843710,-151.0,0.00013698,2]
[333724434,1722409843720,-355.97088972,0.00013698,2]
[333724435,1722409843731,-500.0,0.00013698,2]
[333724436,1722409843741,-500.0,0.00013698,2]
[333724437,1722409843751,-492.15067287,0.00013698,2]
[333724438,1722409843761,-507.91760424,0.00013698,2]
[333724439,1722409843771,-500.0,0.00013698,2]
[333724440,1722409843780,-500.0,0.00013698,2]
[333724441,1722409843790,-500.0,0.00013698,2]